bitfinex-derivatives/quotes_BTCF0:USTF0_20241208
["timestamp","ask_amount","ask_price","bid_price","bid_amount"]
[1733635364755,0.15482381,99704.0,99703.0,0.01641748]
[1733635365264,0.035077,99704.0,99703.0,0.01014901]
[1733635365462,0.08382882,99704.0,99703.0,0.00513423]
[1733635367749,0.09528455,99704.0,99703.0,0.00513423]
[1733635368965,0.03508,99695.0,99694.0,0.01]
[1733635369158,0.03508,99695.0,99685.0,0.01]
[1733635369159,0.035083,99687.0,99685.0,0.01]
[1733635369466,0.035083,99687.0,99680.0,0.01011718]
[1733635369467,0.11964842,99693.0,99686.0,0.01441994]
[1733635369654,0.11964842,99693.0,99687.0,0.0081504]
[1733635369859,0.11964842,99692.0,99688.0,0.00815048]
[1733635370060,0.035082,99690.0,99689.0,0.0050157]
[1733635370262,0.035082,99690.0,99689.0,0.00815051]
[1733635371553,0.036082,99690.0,99689.0,0.01015051]
[1733635372066,0.037082,99690.0,99689.0,0.01015051]
[1733635374167,0.15673042,99690.0,99689.0,0.01015051]
[1733635374567,0.037082,99690.0,99689.0,0.01015051]
[1733635375956,0.18667232,99690.0,99689.0,0.01015051]
[1733635376157,0.18667232,99690.0,99689.0,0.00513481]
[1733635376158,0.0858404,99690.0,99689.0,0.00513481]
[1733635376359,0.0858404,99690.0,99689.0,0.00513489]
[1733635377473,0.08584119,99690.0,99689.0,0.00513489]
[1733635377659,0.08584119,99690.0,99689.0,0.002]
[1733635377867,0.09696075,99690.0,99689.0,0.00513493]
[1733635378066,0.09696075,99690.0,99689.0,0.00313493]
[1733635380460,0.04820156,99690.0,99689.0,0.00313493]
[1733635380669,0.04820156,99690.0,99689.0,0.00815053]
[1733635380876,0.04820156,99690.0,99689.0,0.04025053]
[1733635381974,0.037082,99690.0,99689.0,0.0321]
[1733635382274,0.037082,99690.0,99689.0,0.04025004]
[1733635383067,0.037082,99690.0,99689.0,0.00815004]
[1733635383271,0.037082,99690.0,99689.0,0.00313463]
[1733635384075,0.18662385,99690.0,99689.0,0.00313463]
[1733635384579,0.08584317,99690.0,99689.0,0.00313463]
[1733635384969,0.037082,99690.0,99689.0,0.00313463]
[1733635385479,0.037082,99690.0,99680.0,0.00011718]
[1733635385480,0.035085,99681.0,99680.0,0.00011718]
[1733635385773,0.035085,99681.0,99680.0,0.01453786]
[1733635386976,0.036085,99681.0,99680.0,0.01453786]
[1733635387179,0.037085,99681.0,99680.0,0.01453786]
[1733635388571,0.037085,99681.0,99680.0,0.00011718]
[1733635388781,0.15675141,99681.0,99680.0,0.0145376]
[1733635389078,0.15675141,99681.0,99680.0,0.00513301]
[1733635389267,0.15675141,99681.0,99680.0,0.01453769]
[1733635389467,0.037085,99681.0,99680.0,0.01453769]
[1733635390782,0.04857852,99681.0,99680.0,0.01453769]
[1733635392081,0.04857852,99681.0,99680.0,0.00011718]
[1733635392276,0.04857852,99681.0,99680.0,0.01453822]
[1733635392880,0.01349352,99681.0,99680.0,0.04962422]
[1733635393375,0.14958602,99688.0,99687.0,0.035083]
[1733635393571,0.14958602,99692.0,99690.0,0.035082]
[1733635393777,0.005,99698.0,99690.0,0.035082]
[1733635393778,0.14958602,99697.0,99691.0,0.40562104]
[1733635394069,0.035079,99698.0,99697.0,0.03508]
[1733635394271,0.18477722,99698.0,99697.0,0.04950104]
[1733635394476,0.035079,99698.0,99697.0,0.04950104]
[1733635394676,0.15482521,99698.0,99697.0,0.04950104]
[1733635395179,0.035079,99698.0,99697.0,0.04950104]
[1733635396380,0.035079,99698.0,99697.0,0.05050104]
[1733635397282,0.11972851,99700.0,99699.0,0.035079]
[1733635397483,0.11972851,99701.0,99699.0,0.37522104]
[1733635397689,0.14966798,99703.0,99700.0,0.01442104]
[1733635397881,0.14966798,99703.0,99702.0,0.035078]
[1733635398075,0.14966798,99703.0,99702.0,0.04949904]
[1733635398384,0.035077,99704.0,99702.0,0.01442104]
[1733635398385,0.18474498,99704.0,99702.0,0.01442104]
[1733635398573,0.18474498,99704.0,99699.0,0.3608]
[1733635398574,0.18474498,99704.0,99703.0,0.04949804]
[1733635398777,0.035077,99704.0,99703.0,0.04949381]
[1733635399085,0.18461894,99704.0,99703.0,0.04949381]
[1733635399490,0.035077,99704.0,99703.0,0.04949381]
[1733635400284,0.18461894,99704.0,99703.0,0.04322563]
[1733635400475,0.036077,99704.0,99703.0,0.04322563]
[1733635401174,0.035077,99704.0,99703.0,0.04322563]
[1733635401382,0.036077,99704.0,99703.0,0.04322563]
[1733635403787,0.035077,99704.0,99703.0,0.04322563]
[1733635403988,0.036077,99704.0,99703.0,0.04322563]
[1733635404683,0.15561529,99704.0,99703.0,0.04322563]
[1733635405483,0.036077,99704.0,99703.0,0.04322563]
[1733635405777,0.15561529,99704.0,99703.0,0.04322563]
[1733635406678,0.036077,99704.0,99703.0,0.04322563]
[1733635406881,0.15564321,99704.0,99703.0,0.04322563]
[1733635407086,0.036077,99704.0,99703.0,0.04322563]
[1733635407586,0.15564324,99704.0,99703.0,0.04322563]
[1733635407884,0.15564308,99704.0,99703.0,0.04322563]
[1733635408093,0.001,99704.0,99703.0,0.04322563]
[1733635408279,0.01128192,99705.0,99704.0,0.035077]
[1733635408587,0.035076,99706.0,99704.0,0.04322563]
[1733635408888,0.035076,99706.0,99705.0,0.00814863]
[1733635409386,0.01107121,99709.0,99705.0,0.00814858]
[1733635409576,0.14954194,99713.0,99706.0,0.00814858]
[1733635409884,0.035076,99708.0,99707.0,0.00814864]
[1733635410585,0.035076,99708.0,99707.0,0.04322464]
[1733635411277,0.037076,99708.0,99707.0,0.04322464]
[1733635412283,0.037076,99708.0,99707.0,0.04322451]
[1733635412675,0.002,99708.0,99707.0,0.04322451]
[1733635412878,0.002,99708.0,99707.0,0.0494925]
[1733635413788,0.035075,99711.0,99710.0,0.035075]
[1733635413981,0.035075,99711.0,99710.0,0.0494915]
[1733635414883,0.038075,99711.0,99710.0,0.0494915]
[1733635415077,0.003,99711.0,99710.0,0.0494915]
[1733635415484,0.003,99711.0,99710.0,0.035075]
[1733635415785,0.003,99711.0,99710.0,0.04948998]
[1733635416178,0.12260411,99711.0,99710.0,0.04948998]
[1733635416590,0.003,99711.0,99710.0,0.04948998]
[1733635416793,0.12260411,99711.0,99710.0,0.04948998]
[1733635417391,0.003,99711.0,99710.0,0.04948998]
[1733635417586,0.12060771,99711.0,99710.0,0.04948998]
[1733635418099,0.001,99711.0,99710.0,0.04948998]
[1733635418289,0.001,99711.0,99710.0,0.01441498]
[1733635418484,0.0661,99711.0,99710.0,0.01441498]
[1733635418986,0.21564194,99711.0,99710.0,0.0081476]
[1733635419188,0.0661,99711.0,99710.0,0.01441541]
[1733635419390,0.0661,99711.0,99710.0,0.0081476]
[1733635419590,0.0661,99711.0,99710.0,0.01441543]
[1733635420501,0.18574959,99711.0,99710.0,0.01441543]
[1733635420683,0.18474959,99711.0,99710.0,0.01441543]
[1733635420890,0.18674959,99711.0,99710.0,0.01441543]
[1733635421091,0.0671,99711.0,99710.0,0.01441543]
[1733635422287,0.0671,99711.0,99707.0,0.035076]
[1733635422495,0.035075,99709.0,99708.0,0.01441591]
[1733635423495,0.035075,99709.0,99708.0,0.01496249]
[1733635424097,0.035075,99709.0,99708.0,0.01441591]
[1733635424490,0.036075,99709.0,99708.0,0.01496317]
[1733635424689,0.036075,99709.0,99708.0,0.01441591]
[1733635426994,0.035075,99709.0,99708.0,0.01441591]
[1733635427288,0.036075,99709.0,99708.0,0.01441591]
[1733635428096,0.0848191,99709.0,99708.0,0.01441591]
[1733635428788,0.0848191,99709.0,99707.0,0.035076]
[1733635428996,0.0487441,99708.0,99707.0,0.035076]
[1733635429196,0.0487441,99708.0,99707.0,0.04949224]
[1733635429400,0.0487441,99708.0,99707.0,0.0494921]
[1733635430194,0.0838201,99708.0,99707.0,0.0494921]
[1733635430397,0.0848201,99708.0,99707.0,0.0494921]
[1733635430698,0.08482044,99708.0,99707.0,0.0494921]
[1733635432504,0.08482044,99708.0,99707.0,0.04949228]
[1733635433301,0.08382044,99708.0,99707.0,0.04949228]
[1733635433505,0.08482044,99708.0,99707.0,0.04949228]
[1733635434506,0.08382044,99708.0,99707.0,0.04949228]
[1733635434706,0.08482044,99708.0,99707.0,0.04949228]
[1733635434905,0.036076,99708.0,99707.0,0.04949228]
[1733635435711,0.036076,99708.0,99707.0,0.04949226]
[1733635436298,0.001,99708.0,99707.0,0.04949226]
[1733635436508,0.001,99708.0,99707.0,0.22971484]
[1733635437003,0.035075,99710.0,99709.0,0.035075]
[1733635437199,0.035075,99710.0,99709.0,0.04949126]
[1733635438201,0.036075,99710.0,99709.0,0.04949126]
[1733635438503,0.036075,99710.0,99709.0,0.22971384]
[1733635438504,0.001,99710.0,99709.0,0.22971384]
[1733635438704,0.001,99710.0,99709.0,0.04949126]
[1733635439811,0.001,99710.0,99709.0,0.07959126]
[1733635440200,0.005,99720.0,99717.0,0.035073]
[1733635440396,0.17970344,99730.0,99709.0,0.07959126]
[1733635440397,0.14993044,99722.0,99721.0,0.035071]
[1733635440604,0.14993044,99724.0,99721.0,0.22982877]
[1733635440801,0.035067,99733.0,99722.0,0.01441626]
[1733635440802,0.15000104,99723.0,99722.0,0.01441626]
[1733635441001,0.035067,99733.0,99725.0,0.03507]
[1733635441002,0.15000104,99726.0,99725.0,0.03507]
[1733635441202,0.15000104,99726.0,99725.0,0.04948626]
[1733635441403,0.15000104,99729.0,99727.0,0.035069]
[1733635441599,0.15000104,99729.0,99728.0,0.37521333]
[1733635442409,0.14987599,99730.0,99729.0,0.035068]
[1733635442608,0.14987599,99730.0,99729.0,0.04948133]
[1733635442918,0.04873384,99730.0,99729.0,0.04948133]
[1733635443111,0.035067,99733.0,99731.0,0.035068]
[1733635443410,0.035067,99733.0,99731.0,0.00054694]
[1733635443411,0.16931232,99732.0,99731.0,0.00054694]
[1733635443608,0.16931232,99732.0,99731.0,0.0144132]
[1733635444406,0.04873386,99732.0,99731.0,0.0144132]
[1733635444617,0.08380086,99732.0,99731.0,0.01441324]
[1733635445709,0.09280086,99732.0,99731.0,0.01441324]
[1733635446309,0.09580086,99732.0,99731.0,0.01441324]
[1733635447610,0.09580109,99732.0,99731.0,0.00814661]
[1733635447818,0.09580109,99732.0,99731.0,0.00814663]
[1733635448112,0.09580109,99732.0,99731.0,0.00501331]
[1733635448312,0.035068,99730.0,99728.0,0.3608]
[1733635448512,0.035068,99730.0,99729.0,0.01441332]
[1733635448811,0.035068,99730.0,99729.0,0.00814666]
[1733635449429,0.08580263,99730.0,99729.0,0.00814666]
[1733635449719,0.09480263,99730.0,99729.0,0.00814666]
[1733635450708,0.046068,99730.0,99729.0,0.00814666]
[1733635451315,0.09480457,99730.0,99729.0,0.00814666]
[1733635452420,0.09480523,99730.0,99729.0,0.00814666]
[1733635454418,0.09480523,99730.0,99729.0,0.00313352]
[1733635454615,0.09480523,99730.0,99729.0,0.00814716]
[1733635456425,0.05973687,99730.0,99729.0,0.01441417]
[1733635456726,0.16075629,99730.0,99729.0,0.01441417]
[1733635457423,0.011,99730.0,99729.0,0.01441417]
[1733635458425,0.011,99730.0,99729.0,0.04948217]
[1733635459227,0.046068,99730.0,99729.0,0.04948217]
[1733635459428,0.19586294,99730.0,99729.0,0.04948217]
[1733635459628,0.19586467,99730.0,99729.0,0.04948217]
[1733635460313,0.046068,99730.0,99729.0,0.04948217]
[1733635460517,0.19587356,99730.0,99729.0,0.04948217]
[1733635461020,0.19587356,99730.0,99729.0,0.04948136]
[1733635461021,0.046068,99730.0,99729.0,0.04948136]
[1733635462528,0.19587356,99730.0,99729.0,0.04948136]
[1733635462923,0.19587356,99730.0,99729.0,0.01441336]
[1733635463336,0.046068,99730.0,99729.0,0.01441336]
[1733635464124,0.09480329,99730.0,99729.0,0.01441336]
[1733635464317,0.05973529,99730.0,99729.0,0.00940018]
[1733635464523,0.09480329,99730.0,99729.0,0.01441361]
[1733635464724,0.09480329,99730.0,99729.0,0.04948161]
[1733635465518,0.09480329,99730.0,99729.0,0.01441361]
[1733635465519,0.27444023,99730.0,99729.0,0.01441361]
[1733635466334,0.2744398,99730.0,99729.0,0.01441361]
[1733635466627,0.09480286,99730.0,99729.0,0.01441361]
[1733635466831,0.22605087,99730.0,99729.0,0.01441361]
[1733635467234,0.09480286,99730.0,99729.0,0.01441361]
[1733635467634,0.05973486,99730.0,99727.0,0.396429]
[1733635467935,0.18002586,99728.0,99727.0,0.395869]
[1733635468139,0.22876072,99728.0,99727.0,0.41028268]
[1733635468328,0.04873486,99728.0,99727.0,0.41028268]
[1733635468628,0.21515065,99729.0,99728.0,0.035069]
[1733635468829,0.08380214,99729.0,99728.0,0.04948268]
[1733635470533,0.16223901,99729.0,99728.0,0.04948268]
[1733635470731,0.21097315,99729.0,99728.0,0.04948268]
[1733635471132,0.21097315,99729.0,99728.0,0.04948255]
[1733635471133,0.2109893,99729.0,99728.0,0.04948255]
[1733635471327,0.2129893,99729.0,99728.0,0.04948255]
[1733635472037,0.27390455,99729.0,99728.0,0.04948255]
[1733635472339,0.09380305,99729.0,99728.0,0.01441355]
[1733635474438,0.09380305,99729.0,99728.0,0.01441364]
[1733635474631,0.05873505,99729.0,99727.0,0.3608]
[1733635474937,0.045068,99729.0,99728.0,0.01441368]
[1733635475133,0.22513043,99729.0,99728.0,0.01441368]
[1733635475329,0.27386568,99729.0,99728.0,0.01441368]
[1733635475525,0.09380325,99729.0,99728.0,0.01441368]
[1733635475731,0.22512937,99729.0,99728.0,0.01496098]
[1733635476128,0.22512937,99729.0,99728.0,0.01441368]
[1733635476324,0.22312937,99729.0,99728.0,0.01441368]
[1733635476531,0.27386886,99729.0,99728.0,0.01496101]
[1733635476730,0.09380325,99729.0,99728.0,0.01496101]
[1733635476934,0.09380325,99729.0,99728.0,0.01441368]
[1733635477139,0.09180325,99729.0,99728.0,0.01441368]
[1733635477325,0.09380325,99729.0,99728.0,0.01441368]
[1733635477731,0.09380325,99729.0,99724.0,0.3608]
[1733635477944,0.035069,99726.0,99725.0,0.01441412]
[1733635478246,0.045068,99729.0,99724.0,0.3608]
[1733635478247,0.03507,99725.0,99724.0,0.3608]
[1733635478430,0.03507,99725.0,99724.0,0.37521443]
[1733635478745,0.20216616,99725.0,99724.0,0.37521443]
[1733635479937,0.20816616,99725.0,99724.0,0.37521443]
[1733635480537,0.20916616,99725.0,99724.0,0.37521443]
[1733635481339,0.20916616,99725.0,99724.0,0.37521529]
[1733635484848,0.20916616,99725.0,99724.0,0.01441543]
[1733635485058,0.20916616,99725.0,99724.0,0.00814785]
[1733635487342,0.25189297,99725.0,99724.0,0.00814785]
[1733635487544,0.20916616,99725.0,99724.0,0.00814785]
[1733635487743,0.25189634,99725.0,99724.0,0.00814785]
[1733635488247,0.3839225,99725.0,99724.0,0.00814806]
[1733635488561,0.3839225,99725.0,99715.0,0.01]
[1733635488744,0.035071,99723.0,99716.0,0.01441577]
[1733635488943,0.16709616,99722.0,99717.0,0.01441577]
[1733635489139,0.16709616,99722.0,99712.0,0.00054677]
[1733635489140,0.035072,99719.0,99718.0,0.01441577]
[1733635489541,0.20216816,99719.0,99718.0,0.01441577]
[1733635490466,0.08381315,99719.0,99718.0,0.01441577]
[1733635491645,0.09448359,99719.0,99718.0,0.01441577]
[1733635491852,0.09848359,99719.0,99718.0,0.01441577]
[1733635492752,0.16835391,99719.0,99718.0,0.01441577]
[1733635492966,0.21709506,99719.0,99718.0,0.01441577]
[1733635493667,0.21711643,99719.0,99718.0,0.00814804]
[1733635493870,0.21711643,99719.0,99718.0,0.01441563]
[1733635494468,0.21711643,99719.0,99718.0,0.00814804]
[1733635494675,0.21711643,99719.0,99718.0,0.01441577]
[1733635495066,0.09448359,99719.0,99718.0,0.01441559]
[1733635495266,0.09848359,99719.0,99718.0,0.01441559]
[1733635495467,0.09848359,99719.0,99718.0,0.00814794]
[1733635495867,0.09848359,99719.0,99718.0,0.01441559]
[1733635497563,0.09448359,99719.0,99718.0,0.01441559]
[1733635497764,0.09848359,99719.0,99718.0,0.00814794]
[1733635497972,0.09848359,99719.0,99718.0,0.01441569]
[1733635498174,0.035074,99714.0,99713.0,0.3608]
[1733635498679,0.035074,99714.0,99713.0,0.37521562]
[1733635499368,0.035074,99714.0,99704.0,0.01054678]
[1733635499369,0.08781717,99714.0,99704.0,0.01054678]
[1733635499569,0.035078,99700.0,99699.0,0.01]
[1733635499775,0.035081,99693.0,99692.0,0.3608]
[1733635500282,0.18492712,99693.0,99692.0,0.3608]
[1733635500982,0.035081,99693.0,99692.0,0.3608]
[1733635501776,0.035082,99689.0,99688.0,0.00054707]
[1733635502074,0.03508,99697.0,99685.0,0.00054707]
[1733635502075,0.035083,99686.0,99685.0,0.00054707]
[1733635502275,0.03508,99697.0,99684.0,0.0652]
[1733635502276,0.035084,99685.0,99684.0,0.0652]
[1733635502575,0.14984612,99690.0,99689.0,0.035082]
[1733635502777,0.035082,99691.0,99689.0,0.395882]
[1733635502974,0.14984612,99692.0,99689.0,0.395882]
[1733635503170,0.035082,99690.0,99689.0,0.395882]
[1733635504880,0.036082,99690.0,99689.0,0.395882]
[1733635505577,0.037082,99690.0,99689.0,0.395882]
[1733635507371,0.037082,99690.0,99689.0,0.40215102]
[1733635507578,0.037082,99690.0,99689.0,0.36706902]
[1733635508273,0.037082,99690.0,99689.0,0.3608]
[1733635508576,0.037082,99690.0,99689.0,0.36706918]
[1733635509170,0.037082,99690.0,99689.0,0.00626918]
[1733635509480,0.037082,99690.0,99689.0,0.00501562]
[1733635509687,0.18692812,99690.0,99689.0,0.00501562]
[1733635509981,0.037082,99690.0,99689.0,0.00501562]
[1733635510376,0.037082,99690.0,99689.0,0.01128495]
[1733635510779,0.12684021,99690.0,99689.0,0.01128495]
[1733635511279,0.037082,99690.0,99689.0,0.01128495]
[1733635511483,0.12684021,99690.0,99689.0,0.01441954]
[1733635512186,0.002,99690.0,99689.0,0.04950154]
[1733635512383,0.002,99690.0,99689.0,0.08120154]
[1733635512578,0.002,99690.0,99689.0,0.08174776]
[1733635512778,0.035078,99701.0,99689.0,0.07871577]
[1733635512983,0.035078,99701.0,99700.0,0.39642392]
[1733635513184,0.035078,99701.0,99700.0,0.41029754]
[1733635513876,0.035078,99701.0,99700.0,0.41084328]
[1733635514078,0.035078,99701.0,99700.0,0.41029754]
[1733635514079,0.036078,99701.0,99700.0,0.41029754]
[1733635514273,0.036078,99701.0,99700.0,0.41084328]
[1733635514575,0.035078,99701.0,99700.0,0.395878]
[1733635514782,0.035078,99701.0,99700.0,0.41084098]
[1733635514984,0.035078,99701.0,99700.0,0.37576298]
[1733635515189,0.035078,99701.0,99700.0,0.37521706]
[1733635515685,0.035078,99701.0,99700.0,0.37576298]
[1733635516276,0.035078,99701.0,99700.0,0.37521706]
[1733635516782,0.035078,99701.0,99700.0,0.37576298]
[1733635517383,0.15474883,99701.0,99700.0,0.37576298]
[1733635517779,0.15474883,99701.0,99700.0,0.3608]
[1733635518074,0.035078,99701.0,99700.0,0.36894892]
[1733635518380,0.035078,99701.0,99700.0,0.37709788]
[1733635518586,0.035078,99701.0,99700.0,0.38336633]
[1733635520486,0.035078,99701.0,99700.0,0.41844433]
[1733635523282,0.035078,99701.0,99700.0,0.04949541]
[1733635523480,0.035078,99701.0,99680.0,0.24004967]
[1733635523481,0.09382662,99701.0,99686.0,0.00890788]
[1733635523686,0.395883,99687.0,99686.0,0.00781576]
[1733635523890,0.035085,99681.0,99680.0,0.00011718]
[1733635525287,0.035085,99681.0,99680.0,0.00111718]
[1733635525476,0.036085,99681.0,99680.0,0.00111718]
[1733635527487,0.036085,99681.0,99662.0,0.01054606]
[1733635527488,0.035092,99663.0,99662.0,0.01]
[1733635527679,0.035093,99658.0,99657.0,0.0323]
[1733635528286,0.035093,99658.0,99657.0,0.03284622]
[1733635528489,0.035093,99658.0,99657.0,0.03284607]
[1733635528686,0.035093,99658.0,99657.0,0.0323]
[1733635529195,0.035093,99658.0,99657.0,0.03284599]
[1733635529385,0.035093,99658.0,99657.0,0.032846]
[1733635529582,0.035093,99658.0,99657.0,0.0323]
[1733635529790,0.035093,99658.0,99657.0,0.067394]
[1733635530086,0.036093,99658.0,99657.0,0.067394]
[1733635530589,0.037093,99658.0,99657.0,0.067394]
[1733635530790,0.037093,99658.0,99657.0,0.0323]
[1733635531395,0.037093,99658.0,99657.0,0.038571]
[1733635532983,0.037093,99658.0,99657.0,0.03911672]
[1733635533179,0.037093,99658.0,99657.0,0.038571]
[1733635533392,0.037093,99658.0,99657.0,0.0786818]
[1733635533585,0.037093,99658.0,99657.0,0.07922752]
[1733635533787,0.037093,99658.0,99657.0,0.0786818]
[1733635533980,0.037093,99658.0,99657.0,0.07922752]
[1733635534485,0.037093,99658.0,99657.0,0.0786818]
[1733635534685,0.037093,99658.0,99657.0,0.04413352]
[1733635534895,0.037093,99658.0,99657.0,0.0435878]
[1733635535489,0.037093,99658.0,99657.0,0.08181719]
[1733635536587,0.037093,99658.0,99657.0,0.08236291]
[1733635537188,0.037093,99658.0,99657.0,0.08181719]
[1733635537383,0.037093,99658.0,99657.0,0.08236291]
[1733635537586,0.037093,99658.0,99657.0,0.08181719]
[1733635537992,0.037093,99658.0,99657.0,0.067394]
[1733635538192,0.037093,99658.0,99657.0,0.0818168]
[1733635538491,0.037093,99658.0,99657.0,0.08234136]
[1733635538697,0.037093,99658.0,99657.0,0.08181638]
[1733635540689,0.037093,99658.0,99657.0,0.04672238]
[1733635541493,0.037093,99658.0,99657.0,0.04672336]
[1733635541794,0.397893,99658.0,99657.0,0.04672336]
[1733635541992,0.397893,99658.0,99657.0,0.01442336]
[1733635542793,0.396893,99658.0,99657.0,0.01442336]
[1733635542995,0.395893,99658.0,99657.0,0.01442336]
[1733635543195,0.395893,99658.0,99657.0,0.00815233]
[1733635545003,0.035095,99653.0,99652.0,0.032]
[1733635545190,0.035095,99653.0,99652.0,0.01442362]
[1733635548312,0.01,99656.0,99652.0,0.0081535]
[1733635548313,0.08975316,99655.0,99652.0,0.0081535]
[1733635548493,0.01,99656.0,99653.0,0.0081535]
[1733635548494,0.12484816,99654.0,99653.0,0.0081535]
[1733635548693,0.035096,99651.0,99650.0,0.00010009]
[1733635548894,0.035096,99651.0,99650.0,0.00825368]
[1733635550204,0.036096,99651.0,99650.0,0.00825368]
[1733635550396,0.036096,99651.0,99650.0,0.01452572]
[1733635551294,0.098796,99651.0,99650.0,0.01452572]
[1733635551808,0.098796,99651.0,99650.0,0.01452578]
[1733635553206,0.459596,99651.0,99650.0,0.01452578]
[1733635553506,0.459596,99651.0,99639.0,0.000526]
[1733635553706,0.3959,99640.0,99639.0,0.000526]
[1733635554007,0.3959,99640.0,99639.0,0.00627272]
[1733635554602,0.39597323,99640.0,99639.0,0.00627272]
[1733635555304,0.39697323,99640.0,99639.0,0.00627272]
[1733635555505,0.39797323,99640.0,99639.0,0.00627272]
[1733635557098,0.5175658,99640.0,99639.0,0.00627272]
[1733635557812,0.52825017,99640.0,99639.0,0.00627272]
[1733635558308,0.52825017,99640.0,99630.0,9.259e-05]
[1733635558514,0.035103,99631.0,99630.0,9.259e-05]
[1733635558702,0.035103,99631.0,99630.0,0.00636531]
[1733635559005,0.035103,99631.0,99630.0,9.259e-05]
[1733635559006,0.395903,99631.0,99630.0,9.259e-05]
[1733635559207,0.395903,99631.0,99630.0,0.00636531]
[1733635559711,0.395903,99631.0,99630.0,0.00689149]
[1733635559905,0.396903,99631.0,99630.0,0.00636531]
[1733635560409,0.397903,99631.0,99630.0,0.00636531]
[1733635560705,0.397903,99631.0,99630.0,0.00689149]
[1733635561699,0.397903,99631.0,99630.0,0.00636531]
[1733635562311,0.397903,99631.0,99630.0,0.00689149]
[1733635563215,0.397903,99631.0,99630.0,0.00636531]
[1733635563518,0.397903,99631.0,99630.0,0.0119096]
[1733635563909,0.397903,99631.0,99630.0,0.01138355]
[1733635564112,0.397903,99631.0,99630.0,9.259e-05]
[1733635564416,0.397903,99631.0,99630.0,0.01138375]
[1733635565514,0.58199557,99631.0,99630.0,0.00824777]
[1733635566303,0.462403,99631.0,99630.0,0.00824777]
[1733635566802,0.462403,99631.0,99618.0,0.00052604]
[1733635566803,0.035107,99619.0,99618.0,0.00052604]
[1733635567006,0.035107,99619.0,99618.0,0.00679974]
[1733635567208,0.035107,99619.0,99618.0,0.0062737]
[1733635567413,0.035107,99619.0,99618.0,0.00679961]
[1733635567607,0.035107,99619.0,99618.0,0.0062737]
[1733635567908,0.035107,99619.0,99612.0,0.035109]
[1733635567909,0.035109,99615.0,99612.0,0.035109]
[1733635568116,0.035109,99615.0,99613.0,0.00627364]
[1733635568411,0.045108,99617.0,99616.0,0.035108]
[1733635568607,0.045108,99617.0,99616.0,0.04138164]
[1733635569918,0.046108,99617.0,99616.0,0.04138164]
[1733635570714,0.046108,99617.0,99616.0,0.04138129]
[1733635570917,0.047108,99617.0,99616.0,0.04138129]
[1733635571412,0.047108,99617.0,99616.0,0.22150291]
[1733635571609,0.01,99618.0,99616.0,0.04138129]
[1733635571817,0.01,99618.0,99617.0,0.18621095]
[1733635572216,0.01,99618.0,99617.0,0.18623248]
[1733635572518,0.01,99618.0,99617.0,0.22134048]
[1733635572519,0.045107,99618.0,99617.0,0.22134048]
[1733635572820,0.046107,99618.0,99617.0,0.22134048]
[1733635573205,0.046107,99618.0,99617.0,0.04138129]
[1733635573206,0.011,99618.0,99617.0,0.04138129]
[1733635573410,0.005,99623.0,99617.0,0.04138129]
[1733635573411,0.005,99623.0,99622.0,0.035106]
[1733635573612,0.040104,99629.0,99622.0,0.63965936]
[1733635573913,0.040104,99629.0,99627.0,0.17997182]
[1733635573914,0.035104,99629.0,99627.0,0.17997182]
[1733635574112,0.035104,99629.0,99628.0,0.18624409]
[1733635574511,0.005,99635.0,99628.0,0.18624409]
[1733635574512,0.040102,99635.0,99634.0,0.035102]
[1733635574720,0.035102,99635.0,99634.0,0.04137427]
[1733635575405,0.035102,99635.0,99634.0,0.04137419]
[1733635576009,0.035102,99635.0,99634.0,0.04637419]
[1733635576715,0.035102,99635.0,99634.0,0.08429189]
[1733635577314,0.035102,99635.0,99634.0,0.08429185]
[1733635577515,7.323e-05,99640.0,99634.0,0.08429185]
[1733635577516,7.323e-05,99640.0,99639.0,0.0351]
[1733635578524,7.323e-05,99640.0,99639.0,0.07900071]
[1733635578817,7.323e-05,99640.0,99639.0,0.08413627]
[1733635579117,7.323e-05,99640.0,99639.0,0.08513627]
[1733635580820,7.323e-05,99640.0,99639.0,0.07071196]
[1733635581023,7.323e-05,99640.0,99639.0,0.08513569]
[1733635581620,0.005,99646.0,99645.0,0.035098]
[1733635581820,0.005,99652.0,99651.0,0.035096]
[1733635582026,0.040092,99661.0,99658.0,0.035093]
[1733635582222,0.035092,99661.0,99658.0,0.04324554]
[1733635582717,0.00011203,99660.0,99658.0,0.04324554]
[1733635583525,0.48040887,99659.0,99658.0,0.04324554]
[1733635583818,0.48740887,99659.0,99658.0,0.04951649]
[1733635584323,0.48940887,99659.0,99658.0,0.04951649]
[1733635585426,0.12860887,99659.0,99658.0,0.0495164]
[1733635587015,0.12360887,99659.0,99658.0,0.0495164]
[1733635587522,0.12160887,99659.0,99658.0,0.0505164]
[1733635587729,0.12160887,99659.0,99658.0,0.05051457]
[1733635588227,0.12160887,99659.0,99658.0,0.036093]
[1733635588524,0.002,99659.0,99658.0,0.06305496]
[1733635588725,0.002,99659.0,99658.0,0.08311958]
[1733635589813,0.00011203,99660.0,99659.0,0.035093]
[1733635590009,0.00011203,99660.0,99659.0,0.0821179]
[1733635590926,0.00011203,99660.0,99659.0,0.036093]
[1733635591130,0.00311203,99660.0,99659.0,0.08311643]
[1733635591626,0.00311203,99660.0,99659.0,0.08311641]
[1733635591925,0.00311203,99660.0,99659.0,0.08411641]
[1733635592624,0.03820503,99660.0,99659.0,0.05151349]
[1733635593011,0.03520503,99660.0,99659.0,0.04624371]
[1733635593216,0.03520503,99660.0,99659.0,0.0525143]
[1733635593516,0.03520503,99660.0,99659.0,0.05251433]
[1733635593716,0.00011203,99660.0,99659.0,0.05251433]
[1733635594013,0.00011203,99660.0,99659.0,0.04938036]
[1733635594225,0.00011203,99660.0,99659.0,0.05251574]
[1733635595625,0.00011203,99660.0,99659.0,0.04624498]
[1733635596723,0.00011203,99660.0,99659.0,0.04424498]
[1733635596918,0.00011203,99660.0,99659.0,0.04524498]
[1733635597122,0.00111203,99660.0,99659.0,0.04524498]
[1733635597528,0.00011203,99660.0,99659.0,0.04324498]
[1733635597724,0.00111203,99660.0,99659.0,0.04524498]
[1733635599429,0.00111203,99660.0,99659.0,0.01015198]
[1733635599430,0.03620503,99660.0,99659.0,0.01015198]
[1733635600121,0.03520503,99660.0,99659.0,0.01015198]
[1733635600318,0.03720503,99660.0,99659.0,0.01015198]
[1733635600723,0.03520503,99660.0,99659.0,0.01015198]
[1733635600924,0.03820503,99660.0,99659.0,0.00815198]
[1733635601126,0.03820503,99660.0,99659.0,0.00915198]
[1733635601834,0.03820503,99660.0,99659.0,0.00815198]
[1733635602132,0.03820503,99660.0,99659.0,0.00313538]